bitfinex/quotes_ETHUSD_20240916
["timestamp","ask_amount","ask_price","bid_price","bid_amount"]
[1726526103532,4.39409005,2291.5,2291.2,0.24837144]
[1726526103712,6.85014,2291.4,2291.2,0.24837144]
[1726526104046,6.85062,2291.2,2290.7,6.61841]
[1726526104249,4.3649,2291.0,2290.7,2.2531]
[1726526104434,4.3649,2291.0,2290.6,4.36566]
[1726526105654,4.3649,2291.0,2290.5,6.61881]
[1726526107049,0.03000005,2291.1,2290.7,4.36536]
[1726526107527,0.03000005,2291.1,2290.7,8.73073]
[1726526107712,0.03000005,2291.1,2290.8,2.2531]
[1726526107928,6.88062005,2291.2,2290.8,6.61837]
[1726526109436,6.88062005,2291.2,2290.9,0.24890844]
[1726526109636,8.28806652,2291.2,2290.9,0.24890844]
[1726526115489,6.74824,2291.4,2290.9,4.61396844]
[1726526115691,6.74824,2291.4,2291.0,4.3649]
[1726526115898,6.74824,2291.4,2291.1,0.24861553]
[1726526117970,11.14250005,2291.4,2291.1,0.24861553]
[1726526118170,12.99675006,2291.4,2291.1,0.24861553]
[1726526118402,12.99675006,2291.4,2290.9,4.36507]
[1726526118605,12.99675006,2291.4,2291.2,0.24836378]
[1726526118763,12.99675006,2291.4,2290.9,4.36507]
[1726526118963,6.77824005,2291.4,2291.3,0.24821545]
[1726526119290,6.77824005,2291.4,2290.9,4.36507]
[1726526119457,6.77824005,2291.4,2291.0,0.24866049]
[1726526120503,4.3644,2291.3,2291.0,0.24866049]
[1726526120662,4.3644,2291.3,2290.8,10.9835]
[1726526120867,4.3644,2291.3,2290.9,0.24880886]
[1726526121775,4.3644,2291.3,2290.9,4.61386886]
[1726526122162,6.74824,2291.4,2290.9,4.61386886]
[1726526122763,11.11249,2291.4,2290.9,4.61386886]
[1726526123036,11.11248,2291.4,2290.9,4.61386886]
[1726526123219,6.74824,2291.4,2290.9,4.61386886]
[1726526128365,6.74824,2291.4,2291.0,4.36485]
[1726526128852,6.74824,2291.4,2291.1,0.24846236]
[1726526131674,2.4787,2291.2,2291.1,0.24846236]
[1726526131997,2.4787,2291.2,2291.1,0.24845087]
[1726526132268,2.50870005,2291.2,2291.1,0.24845087]
[1726526132443,2.50870005,2291.2,2290.8,4.36517]
[1726526132444,3.79590176,2291.2,2290.8,4.36517]
[1726526132990,8.16043176,2291.2,2290.9,0.2487476]
[1726526133333,1.25248418,2291.1,2290.7,10.98377]
[1726526133651,8.08579418,2291.1,2291.0,0.24859923]
[1726526133860,8.08579418,2291.1,2290.6,0.91592]
[1726526133861,2.4686,2291.0,2290.6,0.91592]
[1726526134063,4.1030571,2290.8,2290.4,0.91592]
[1726526134366,0.03000005,2290.7,2290.3,6.6192]
[1726526135054,0.03000005,2290.7,2290.4,4.36601]
[1726526135367,2.49860005,2290.8,2290.4,4.36601]
[1726526136036,2.49860005,2290.8,2290.3,6.6192]
[1726526136241,0.03000005,2290.7,2290.3,6.6192]
[1726526136962,0.03000005,2290.7,2290.3,10.98533]
[1726526137441,0.03000005,2290.7,2290.3,6.6192]
[1726526137644,0.03000005,2290.7,2290.3,10.98533]
[1726526138030,2.4686,2290.8,2290.3,10.98533]
[1726526138234,2.2969,2290.6,2290.1,5.2824]
[1726526138583,2.2969,2290.6,2290.2,3.46395366]
[1726526138866,2.2969,2290.6,2290.1,5.2824]
[1726526139025,2.2969,2290.6,2290.2,7.82979717]
[1726526139232,2.2969,2290.6,2290.2,4.36632]
[1726526139530,2.2969,2290.6,2290.3,0.24982957]
[1726526139925,2.2969,2290.6,2290.2,4.36632]
[1726526140170,2.2969,2290.6,2290.3,0.24982957]
[1726526140665,2.2969,2290.6,2290.2,4.36632]
[1726526140970,2.2969,2290.6,2290.3,0.24982957]
[1726526141328,2.2969,2290.6,2290.2,4.36632]
[1726526141526,2.2969,2290.6,2290.4,0.24968112]
[1726526141796,2.2969,2290.6,2290.2,4.36632]
[1726526141948,2.2969,2290.6,2290.5,0.24953269]
[1726526142153,2.2969,2290.6,2290.2,4.36632]
[1726526142333,2.2969,2290.6,2290.5,0.24953269]
[1726526142534,2.2969,2290.6,2290.2,4.36632]
[1726526142745,2.2969,2290.6,2290.5,0.24953269]
[1726526142946,2.2969,2290.6,2290.3,4.36613]
[1726526143146,2.2969,2290.6,2290.5,0.24953269]
[1726526143343,2.2969,2290.6,2290.4,0.24968112]
[1726526143636,2.2969,2290.6,2290.5,0.24953269]
[1726526144038,2.2969,2290.6,2290.3,8.73225]
[1726526144236,2.2969,2290.6,2290.5,0.24953269]
[1726526144434,2.2969,2290.6,2290.4,0.24968112]
[1726526144737,2.2969,2290.6,2290.5,0.24953269]
[1726526145237,2.2969,2290.6,2290.3,6.61922]
[1726526145437,2.2969,2290.6,2290.5,0.24953269]
[1726526145650,2.2969,2290.6,2290.4,0.24968112]
[1726526145850,2.2969,2290.6,2290.5,0.24953269]
[1726526146183,2.2969,2290.6,2290.3,6.61922]
[1726526146379,2.2969,2290.6,2290.5,0.24953269]
[1726526146559,2.2969,2290.6,2290.4,0.24968112]
[1726526146761,2.2969,2290.6,2290.5,0.24953269]
[1726526147155,2.2969,2290.6,2290.3,6.61922]
[1726526147476,2.2969,2290.6,2290.5,0.24953269]
[1726526147643,2.2969,2290.6,2290.4,0.24968112]
[1726526147989,2.2969,2290.6,2290.5,0.24953269]
[1726526148380,2.2969,2290.6,2290.3,6.61922]
[1726526148553,2.2969,2290.6,2290.5,0.24953269]
[1726526148748,2.2969,2290.6,2290.4,0.24968112]
[1726526149083,2.2969,2290.6,2290.5,0.24953269]
[1726526149597,2.2969,2290.6,2290.5,0.24956332]
[1726526149766,2.2969,2290.6,2290.3,6.61922]
[1726526149962,2.2969,2290.6,2290.5,0.24956332]
[1726526150175,2.2969,2290.6,2290.4,0.24971176]
[1726526150362,2.2969,2290.6,2290.5,0.24956332]
[1726526150792,2.2969,2290.6,2290.3,6.61922]
[1726526151085,2.2969,2290.6,2290.5,0.24956332]
[1726526151245,2.2969,2290.6,2290.4,0.24971176]
[1726526151452,2.2969,2290.6,2290.5,0.24956332]
[1726526151802,2.2969,2290.6,2290.3,6.61922]
[1726526151949,2.2969,2290.6,2290.5,0.24956332]
[1726526152588,2.2969,2290.6,2290.3,6.61922]
[1726526152795,2.2969,2290.6,2290.5,0.24956332]
[1726526152959,2.2969,2290.6,2290.4,0.24971176]
[1726526153170,2.2969,2290.6,2290.5,0.24956332]
[1726526153663,2.2969,2290.6,2290.3,6.61922]
[1726526153866,2.2969,2290.6,2290.5,0.24956332]
[1726526154075,2.2969,2290.6,2290.4,0.24971176]
[1726526154257,2.2969,2290.6,2290.5,0.24956332]
[1726526154597,2.2969,2290.6,2290.3,10.98537]
[1726526154765,2.2969,2290.6,2290.5,0.24974714]
[1726526154950,2.2969,2290.6,2290.4,0.24989557]
[1726526155149,2.2969,2290.6,2290.5,0.24974714]
[1726526155677,2.2969,2290.6,2290.3,10.98537]
[1726526155885,2.2969,2290.6,2290.5,0.24974714]
[1726526156078,2.2969,2290.6,2290.4,0.24989557]
[1726526156387,2.2969,2290.6,2290.5,0.24974714]
[1726526156765,2.2969,2290.6,2290.3,10.98537]
[1726526157001,2.2969,2290.6,2290.5,0.24974714]
[1726526157286,2.2969,2290.6,2290.4,0.24989557]
[1726526157490,2.2969,2290.6,2290.5,0.24974714]
[1726526157891,2.2969,2290.6,2290.3,10.98537]
[1726526158086,2.2969,2290.6,2290.5,0.24974714]
[1726526158278,2.2969,2290.6,2290.4,0.24989557]
[1726526158593,2.2969,2290.6,2290.5,0.24974714]
[1726526159488,2.2969,2290.6,2290.3,10.98537]
[1726526159788,2.2969,2290.6,2290.4,0.24989557]
[1726526162068,6.71927005,2290.8,2290.4,4.61589557]
[1726526162264,2.49350005,2290.7,2290.4,0.24989557]
[1726526162468,3.32892654,2290.7,2290.4,0.24989557]
[1726526162699,7.69452654,2290.7,2290.4,0.24989557]
[1726526163197,7.69452654,2290.7,2290.3,4.36612]
[1726526163694,7.69452654,2290.7,2290.4,0.2499224]
[1726526164065,7.69452654,2290.7,2290.3,4.36612]
[1726526164276,2.49350005,2290.7,2290.3,4.36609]
[1726526164597,2.49350005,2290.7,2290.4,0.2499224]
[1726526168172,6.85905005,2290.7,2290.4,0.2499224]
[1726526168879,4.39555005,2290.7,2290.2,4.36642]
[1726526169078,2.4081,2290.6,2290.5,0.24977396]
[1726526169282,2.4081,2290.6,2290.2,4.36642]
[1726526169505,2.4081,2290.6,2290.5,0.24977396]
[1726526169801,8.1843782,2290.6,2290.5,0.24977396]
[1726526169961,8.1843782,2290.6,2290.2,4.36642]
[1726526170160,8.1843782,2290.6,2290.5,0.24977396]
[1726526170377,8.1843782,2290.6,2290.2,4.36642]
[1726526170574,8.1843782,2290.6,2290.5,0.24977396]
[1726526170754,8.1843782,2290.6,2290.2,4.36642]
[1726526170984,8.1843782,2290.6,2290.5,0.24977396]
[1726526171169,8.1843782,2290.6,2290.2,4.36642]
[1726526171366,8.1843782,2290.6,2290.5,0.24977396]
[1726526171577,8.1843782,2290.6,2290.2,4.36642]
[1726526171800,8.1843782,2290.6,2290.5,0.24977396]
[1726526172106,8.1843782,2290.6,2290.2,4.36642]
[1726526172260,8.1843782,2290.6,2290.5,0.24977396]
[1726526172456,3.8186882,2290.6,2290.2,4.36642]
[1726526172673,2.4081,2290.6,2290.5,0.24983526]
[1726526172895,2.4081,2290.6,2290.2,4.36642]
[1726526173137,2.4081,2290.6,2290.5,0.24983526]
[1726526173266,2.4081,2290.6,2290.2,4.36642]
[1726526173466,2.4081,2290.6,2290.5,0.24983526]
[1726526173666,3.68551449,2290.6,2290.2,4.36642]
[1726526173867,2.4081,2290.6,2290.5,0.24983526]
[1726526174499,6.70644,2290.8,2290.4,4.36603]
[1726526174713,6.70644,2290.8,2290.5,0.24983526]
[1726526175391,6.73644005,2290.8,2290.5,0.24983526]
[1726526179850,6.70644,2290.8,2290.5,0.24983526]
[1726526180050,4.36534,2290.8,2290.5,2.50293526]
[1726526180563,0.4570564,2290.9,2290.7,4.36545]
[1726526180855,0.4570564,2290.9,2290.6,4.36551]
[1726526181007,6.84656,2291.1,2290.8,0.24941301]
[1726526181208,11.21137,2291.1,2290.7,0.24956141]
[1726526181438,11.21137,2291.1,2290.6,4.36551]
[1726526181640,6.84656,2291.1,2290.8,0.24941301]
[1726526181950,8.20940156,2291.1,2290.6,8.73109]
[1726526182151,6.84656,2291.1,2290.9,0.24926463]
[1726526182534,6.84656,2291.1,2291.0,0.24911625]
[1726526182759,6.87656005,2291.1,2291.0,0.24911625]
[1726526182952,8.4058981,2291.1,2290.6,4.36551]
[1726526183196,8.4058981,2291.1,2291.0,0.24911625]
[1726526183308,8.4058981,2291.1,2290.6,4.36551]
[1726526183652,2.2553,2290.9,2290.7,0.24956141]
[1726526183835,0.03000005,2290.8,2290.5,4.36576]
[1726526184351,0.03000005,2290.8,2290.4,4.36589]
[1726526184352,0.03000005,2290.8,2290.6,0.24970982]
[1726526184680,0.03000005,2290.8,2290.4,4.36589]
[1726526184807,0.03000005,2290.8,2290.7,0.24939669]
[1726526185006,0.03000005,2290.8,2290.4,4.36589]
[1726526185207,0.03000005,2290.8,2290.7,0.24939669]
[1726526185450,0.03000005,2290.8,2290.4,4.36589]
[1726526185755,0.03000005,2290.8,2290.7,0.24939669]
[1726526185913,0.03000005,2290.8,2290.4,4.36589]
[1726526186114,0.03000005,2290.8,2290.7,0.24939669]
[1726526186338,2.2553,2290.9,2290.6,4.36565]
[1726526186646,4.36499,2291.0,2290.7,0.24939669]
[1726526186831,0.60600809,2291.0,2290.7,0.24939669]
[1726526187006,2.41,2291.1,2290.7,4.61486669]
[1726526187208,6.77473,2291.1,2290.7,4.61486669]
[1726526187410,0.45704555,2291.2,2290.8,6.61829]
[1726526187625,0.45704555,2291.2,2290.8,6.86751149]
[1726526192155,0.45704555,2291.2,2290.9,4.36507]
[1726526192321,0.45704555,2291.2,2291.0,4.3648]
[1726526192522,0.45704555,2291.2,2291.0,4.6137209]
[1726526194514,6.71467,2291.6,2291.1,6.61781]
[1726526194718,2.3508,2291.6,2291.1,6.61781]
[1726526195038,2.3508,2291.6,2291.2,0.24855143]
[1726526195227,6.71458,2291.6,2291.2,0.24855143]
[1726526195425,0.45670407,2291.7,2291.4,6.61723]
[1726526195633,0.45670407,2291.7,2291.4,6.61713]
[1726526195830,0.45670407,2291.7,2291.5,0.24795712]
[1726526196116,0.03000005,2291.7,2291.3,4.36426]
[1726526196315,6.7494964,2291.8,2291.3,4.36426]
[1726526196316,6.77949645,2291.8,2291.6,0.24780883]
[1726526196551,6.77949645,2291.8,2291.3,4.36426]
[1726526196737,6.77949645,2291.8,2291.7,0.24756101]
[1726526196942,6.77949645,2291.8,2291.3,4.36426]
[1726526197140,6.77949645,2291.8,2291.7,0.24756101]
[1726526197425,6.7494964,2291.8,2291.7,0.24756101]
[1726526197626,6.7494964,2291.8,2291.4,4.36413]
[1726526197831,2.3860864,2291.8,2291.7,0.24756101]
[1726526198044,2.3860864,2291.8,2291.4,4.36413]
[1726526198280,2.3860864,2291.8,2291.7,0.24756101]
[1726526198491,2.3860864,2291.8,2291.4,4.36413]
[1726526198794,2.3860864,2291.8,2291.7,0.24756101]
[1726526199151,2.3860864,2291.8,2291.4,4.36413]
[1726526199457,2.3860864,2291.8,2291.5,0.24785759]
[1726526202666,6.7494764,2291.8,2291.5,0.24785759]
[1726526202878,0.03000005,2291.7,2291.3,4.36433]
[1726526203077,0.03000005,2291.7,2291.6,0.24765188]
[1726526203377,9.66246339,2291.8,2291.3,4.36433]
[1726526203571,0.03000005,2291.7,2291.3,4.36433]
[1726526203889,8.41469131,2291.8,2291.4,0.24794848]
[1726526204398,6.80296005,2291.7,2291.4,0.24794848]
[1726526204607,8.08664518,2291.7,2291.2,4.36439]
[1726526204779,6.80296005,2291.7,2291.2,4.36439]
[1726526204984,6.80296005,2291.7,2291.3,0.2480968]
[1726526205440,6.80296005,2291.7,2291.2,4.36439]
[1726526205568,6.80296005,2291.7,2291.4,0.24779151]
[1726526205773,1.28368513,2291.6,2291.4,0.24779151]
[1726526206009,1.28368513,2291.6,2291.5,0.24764321]
[1726526206314,6.80296005,2291.7,2291.2,4.36439]
[1726526206610,6.80296005,2291.7,2291.5,0.24764321]
[1726526206808,4.36377,2291.6,2291.2,4.36439]
[1726526207038,4.36455,2291.2,2290.7,2.2531]
[1726526207317,0.03000005,2291.1,2290.7,6.61844]
[1726526208098,2.2778,2291.0,2290.7,4.36534]
[1726526210129,2.2778,2291.2,2290.8,6.61834]
[1726526210699,4.36448,2291.3,2290.8,6.61834]
[1726526214401,4.36448,2291.3,2290.9,0.24773537]
[1726526215489,4.36448,2291.3,2290.9,4.61281537]
[1726526215691,0.03000005,2291.4,2291.1,2.2531]
[1726526215924,4.39404005,2291.5,2291.1,2.2531]
[1726526216127,6.4378966,2291.4,2291.2,0.24726352]
[1726526217210,6.4378966,2291.4,2291.0,4.36487]
[1726526217419,6.4378966,2291.4,2291.1,0.24741187]
[1726526218246,4.36415,2291.4,2291.1,0.24741187]
[1726526218944,8.94342599,2291.6,2291.1,0.24741187]
[1726526219101,4.36398,2291.5,2291.1,0.24741187]
[1726526219302,4.36398,2291.5,2291.1,0.24655217]
[1726526220039,2.94434113,2291.6,2291.2,6.61743]
[1726526220354,0.45674113,2291.6,2291.2,6.86466486]
[1726526222223,1.97439837,2291.6,2291.2,6.86466486]
[1726526223818,6.33817837,2291.6,2291.2,2.50033486]
[1726526224814,2.4032,2291.5,2291.2,2.50033486]
[1726526225050,2.43320005,2291.5,2291.2,0.24723486]
[1726526229045,6.79719005,2291.5,2291.2,0.24723486]
[1726526230321,8.30673689,2291.5,2291.2,0.24723486]
[1726526230521,4.36429,2291.4,2291.0,2.2531]
[1726526230721,0.03000005,2291.3,2291.0,2.2531]
[1726526231158,4.39436005,2291.3,2291.0,2.2531]
[1726526232174,4.36436,2291.3,2291.0,2.2531]
[1726526233343,0.03000005,2291.2,2291.0,2.2531]
[1726526234153,5.66147874,2291.3,2291.0,2.2531]
[1726526234679,0.03000005,2291.2,2291.0,2.2531]
[1726526236339,5.63147869,2291.3,2291.0,2.2531]
[1726526237867,0.03000005,2291.2,2291.0,2.2531]
[1726526238189,4.36491,2291.0,2290.5,2.2531]
[1726526238340,2.40750005,2290.9,2290.5,2.2531]
[1726526238676,6.77271005,2290.9,2290.5,2.2531]
[1726526238886,2.40750005,2290.9,2290.5,2.2531]
[1726526239095,2.40750005,2290.9,2290.5,6.61893]
[1726526239387,3.68476754,2290.9,2290.5,6.61893]
[1726526240078,1.27726749,2290.9,2290.5,6.61893]
[1726526240781,1.27726749,2290.9,2290.5,2.2531]
[1726526240983,5.64235749,2290.9,2290.5,2.2531]
[1726526241287,5.67235754,2290.9,2290.5,2.2531]
[1726526244142,0.03000005,2290.9,2290.5,6.61892]
[1726526244381,0.03000005,2290.9,2290.6,0.24827047]
[1726526246087,4.39510005,2290.9,2290.6,0.24827047]
[1726526247705,4.3651,2290.9,2290.6,0.24827047]
[1726526248186,4.39510005,2290.9,2290.6,0.24827047]
[1726526248369,2.4401,2290.8,2290.6,0.24827047]
[1726526248884,2.4401,2290.8,2290.4,8.73181]
[1726526249193,2.4401,2290.8,2290.7,0.24812206]
[1726526249372,2.4401,2290.8,2290.4,8.73184]
[1726526249579,2.4401,2290.8,2290.7,0.24812206]
[1726526250065,2.4401,2290.8,2290.4,8.73184]
[1726526250259,2.4401,2290.8,2290.5,0.2484189]
[1726526251355,6.8054,2290.8,2290.5,0.2484189]
[1726526251584,2.4401,2290.8,2290.5,0.2484189]
[1726526252460,2.47010005,2290.8,2290.5,0.2484189]
[1726526252987,7.77011064,2290.8,2290.5,0.2484189]
[1726526254013,4.39549005,2290.7,2290.5,0.2484189]
[1726526254173,6.69376,2290.6,2290.5,0.2484189]
[1726526254372,6.69376,2290.6,2290.1,6.61971]
[1726526254373,6.72376005,2290.6,2290.1,6.61971]
[1726526255022,6.72376005,2290.6,2290.2,0.24900956]
[1726526255229,4.36588,2290.5,2290.2,0.24900956]
[1726526255382,2.2731,2290.4,2290.2,0.24900956]
[1726526256903,2.2731,2290.4,2290.0,4.3668]
[1726526257135,2.2731,2290.4,2290.3,0.24888023]
[1726526257427,2.9321165,2290.4,2290.0,4.3668]
[1726526257597,2.9321165,2290.4,2290.3,0.24888023]
[1726526257803,2.9321165,2290.4,2290.0,4.3668]
[1726526258012,2.9321165,2290.4,2290.3,0.24888023]
[1726526258530,2.9321165,2290.4,2290.0,4.3668]
[1726526258743,2.9321165,2290.4,2290.3,0.24888023]
[1726526259026,2.9321165,2290.4,2290.0,4.3668]
[1726526259213,2.9321165,2290.4,2290.3,0.24888023]
[1726526259729,2.9321165,2290.4,2290.0,4.3668]
[1726526260027,2.2731,2290.4,2290.3,0.24888023]
[1726526260233,2.2731,2290.4,2290.0,4.3668]
[1726526260394,2.2731,2290.4,2290.3,0.24888023]
[1726526260595,2.2731,2290.4,2290.1,4.36661]
[1726526260938,2.2731,2290.4,2290.2,0.24902869]
[1726526261444,4.36566,2290.6,2290.2,2.50212869]
[1726526263303,5.08112045,2290.6,2290.2,2.50212869]
[1726526266918,6.71633531,2290.6,2290.2,2.50212869]
[1726526267121,2.3384,2290.4,2290.2,0.24902869]
[1726526270851,0.03000005,2290.3,2290.2,0.24902869]
[1726526271134,0.03000005,2290.3,2289.9,8.73376]
[1726526271333,0.03000005,2290.3,2290.2,0.24913582]
[1726526271334,5.50639906,2290.3,2290.2,0.24913582]
[1726526271558,2.4562,2290.2,2289.8,4.3698881]
[1726526271760,0.03000005,2290.1,2289.8,0.0027981]
[1726526271966,3.87081444,2290.2,2289.8,0.0027981]
[1726526272131,8.23728444,2290.2,2289.8,0.0027981]
[1726526274372,8.23728444,2290.2,2289.9,0.24979174]
[1726526274734,3.87081444,2290.2,2289.9,0.24979174]
[1726526275091,3.87081444,2290.2,2289.9,2.50289174]
[1726526275092,2.4562,2290.2,2289.9,2.50289174]
[1726526278739,2.48620005,2290.2,2289.9,2.50289174]
[1726526280340,2.4562,2290.2,2289.9,6.86987174]
[1726526290060,8.73225,2290.4,2290.0,4.36672]
[1726526290061,2.3177,2290.4,2290.0,4.36672]
[1726526290265,2.3177,2290.4,2289.9,7.28047106]
[1726526290266,0.45703746,2290.5,2290.2,4.36624]
[1726526290581,0.45703746,2290.5,2290.3,0.24941212]
[1726526290754,0.45703746,2290.5,2290.2,4.36624]
[1726526291093,0.45703746,2290.5,2290.3,0.24941212]
[1726526291260,0.45703746,2290.5,2290.2,4.36624]
[1726526291462,0.45703746,2290.5,2290.3,0.24941212]
[1726526291666,0.45703746,2290.5,2290.2,4.36624]
[1726526291972,0.45703746,2290.5,2290.3,0.24941212]
[1726526292175,0.45703746,2290.5,2290.2,4.36624]
[1726526292384,0.45703746,2290.5,2290.4,0.24926367]
[1726526292904,0.45703746,2290.5,2290.2,4.36624]
[1726526293103,0.45703746,2290.5,2290.4,0.24926367]
[1726526293321,0.45703746,2290.5,2290.2,4.36624]
[1726526293465,0.45703746,2290.5,2290.4,0.24926367]
[1726526293811,0.45703746,2290.5,2290.2,4.36624]
[1726526293965,0.45703746,2290.5,2290.4,0.24926367]
[1726526294162,0.45703746,2290.5,2290.2,4.36624]
[1726526294368,0.45703746,2290.5,2290.4,0.24926367]
[1726526294872,0.45703746,2290.5,2290.2,4.36624]
[1726526295073,0.45703746,2290.5,2290.3,0.24941212]
[1726526295269,0.45703746,2290.5,2290.2,4.36624]
[1726526295468,0.45703746,2290.5,2290.3,0.24941212]
[1726526295669,0.45703746,2290.5,2290.2,4.36624]
[1726526295881,0.45703746,2290.5,2290.3,0.24941212]
[1726526296083,2.38900005,2290.6,2290.2,4.36624]
[1726526296307,2.38900005,2290.6,2290.3,4.61561212]
[1726526296308,2.359,2290.6,2290.3,4.61561212]
[1726526296605,2.359,2290.6,2290.3,0.24941212]
[1726526296972,2.359,2290.6,2290.2,6.61934]
[1726526297188,2.359,2290.6,2290.3,4.36616]
[1726526304520,2.359,2290.6,2290.4,0.2491259]
[1726526309227,2.406,2290.8,2290.4,4.6150759]
[1726526311400,8.78841449,2290.8,2290.4,4.6150759]
[1726526312298,6.77129,2290.8,2290.4,4.6150759]
[1726526313727,2.406,2290.8,2290.4,8.9810359]
[1726526314090,2.406,2290.8,2290.4,4.6150759]
[1726526315047,2.406,2290.8,2290.4,8.9810359]
[1726526315404,2.406,2290.8,2290.5,6.61894]
[1726526315805,2.406,2290.8,2290.6,0.24871805]
[1726526317578,2.406,2290.8,2290.4,10.98498]
[1726526317857,2.406,2290.8,2290.7,0.24856964]
[1726526318066,2.406,2290.8,2290.4,10.98498]
[1726526318226,2.406,2290.8,2290.7,0.24856964]
[1726526318419,3.56530014,2290.8,2290.4,10.98498]
[1726526318643,2.406,2290.8,2290.7,0.24856964]
[1726526318971,2.406,2290.8,2290.7,0.24839746]
[1726526319439,2.406,2290.8,2290.4,10.98498]
[1726526319642,2.406,2290.8,2290.7,0.24839746]
[1726526319968,3.56830114,2290.8,2290.7,0.24839746]
[1726526320165,3.56830114,2290.8,2290.4,10.98498]
[1726526320327,2.406,2290.8,2290.7,0.24839746]
[1726526320668,2.406,2290.8,2290.4,10.98498]
[1726526320834,2.406,2290.8,2290.7,0.24839746]
[1726526321035,2.406,2290.8,2290.6,4.36554]
[1726526321255,2.406,2290.8,2290.7,0.24837833]
[1726526323191,2.406,2290.8,2290.5,4.36582]
[1726526323327,2.406,2290.8,2290.7,0.24835538]
[1726526323684,3.29234062,2290.8,2290.6,0.24853822]
[1726526323885,3.29234062,2290.8,2290.7,0.24838981]
[1726526324189,3.29234062,2290.8,2290.5,4.36582]
[1726526324459,3.29234062,2290.8,2290.7,0.24838981]
[1726526324677,3.29234062,2290.8,2290.6,0.24853822]
[1726526324832,2.406,2290.8,2290.7,0.24838981]
[1726526325262,2.406,2290.8,2290.5,4.36582]
[1726526325427,2.406,2290.8,2290.7,0.24838981]
[1726526325779,3.13181914,2290.8,2290.7,0.24838981]
[1726526326091,3.13181914,2290.8,2290.5,4.36582]
[1726526326372,3.13181914,2290.8,2290.6,0.24853822]
[1726526328965,3.16181919,2290.8,2290.6,0.24853822]
[1726526329356,3.13181914,2290.8,2290.6,0.24853822]
[1726526329560,0.79840106,2290.7,2290.6,0.24853822]
[1726526333285,2.406,2290.8,2290.6,0.24853822]
[1726526335552,2.43600005,2290.8,2290.6,0.24853822]
[1726526341175,6.80137005,2290.8,2290.6,0.24853822]
[1726526341716,6.80137005,2290.8,2290.7,0.24841661]
[1726526342013,4.36596,2290.5,2290.0,7.53605878]
[1726526342202,4.36666,2290.1,2289.8,0.91896688]
[1726526342383,4.36666,2290.1,2289.8,0.0027981]
[1726526342384,4.39666005,2290.1,2289.8,0.0027981]
[1726526342580,2.2815,2290.0,2289.8,0.0027981]
[1726526349213,2.2815,2290.0,2289.9,0.24987978]
[1726526351835,11.17216005,2290.2,2289.9,0.24987978]
[1726526352246,12.49655714,2290.2,2289.9,0.24987978]
[1726526352648,4.36662,2290.1,2289.9,0.24987978]
[1726526352857,0.03000005,2290.0,2289.9,0.24987978]
[1726526353143,4.39662005,2290.1,2289.9,0.24987978]
[1726526353519,5.50322677,2290.1,2289.9,0.24987978]
[1726526354147,8.45582486,2290.0,2289.9,0.24987978]
[1726526354450,12.85263491,2290.0,2289.9,0.24987978]
[1726526358760,7.12119559,2290.2,2289.9,0.24987978]
[1726526358964,0.03000005,2290.1,2289.9,0.24987978]
[1726526359549,7.15119564,2290.2,2289.9,0.24987978]
[1726526359928,11.51780564,2290.2,2289.9,0.24987978]
[1726526360335,7.15119564,2290.2,2289.9,0.24987978]
[1726526360667,7.15118564,2290.2,2289.9,0.24987978]
[1726526360951,7.15117564,2290.2,2289.9,0.24987978]
[1726526361376,8.02981469,2290.2,2289.9,0.24987978]
[1726526362033,12.39634469,2290.2,2289.9,0.24987978]
[1726526363759,6.00188486,2290.1,2289.9,0.24987978]
[1726526363932,6.03188491,2290.1,2289.9,0.24987978]
[1726526366323,4.36681,2290.0,2289.9,0.24987978]
[1726526366519,12.51001901,2290.0,2289.9,0.24987978]
[1726526369546,11.1696,2289.9,2289.8,0.0027981]
[1726526369750,12.80481486,2289.9,2289.8,0.0027981]
[1726526373264,13.26201856,2289.9,2289.8,0.0027981]
[1726526373467,15.36120331,2289.9,2289.8,0.0027981]
[1726526380591,18.36120331,2289.9,2289.8,0.0027981]
[1726526383585,18.36120331,2289.9,2289.8,0.25330107]
[1726526384198,18.36120331,2289.9,2289.8,0.0027981]
[1726526385380,20.32120331,2289.9,2289.8,0.0027981]
[1726526387387,6.7842037,2289.9,2289.8,0.0027981]
[1726526387582,2.4172037,2289.9,2289.8,2.50647767]
[1726526387785,4.36625,2290.3,2289.8,6.87366767]
[1726526388090,4.39643005,2290.2,2289.8,2.50647767]
[1726526388305,6.03164491,2290.2,2289.8,2.50647767]
[1726526390631,0.03000005,2290.2,2289.8,2.50647767]
[1726526391387,4.39643005,2290.2,2289.8,2.50647767]
[1726526392001,6.03164491,2290.2,2289.8,2.50647767]
[1726526392331,7.31314609,2290.2,2289.8,2.50647767]
[1726526394124,11.67974609,2290.2,2289.8,2.50647767]
[1726526395287,11.67967609,2290.2,2289.8,2.50647767]
[1726526395487,7.31314609,2290.2,2289.8,2.50647767]
[1726526395903,11.67972609,2290.2,2289.8,2.50647767]
[1726526396291,10.04446123,2290.2,2289.8,2.50647767]
[1726526396528,11.67967609,2290.2,2289.8,2.50647767]
[1726526398691,11.67968609,2290.2,2289.8,2.50647767]
[1726526398894,11.67967609,2290.2,2289.8,2.50647767]
[1726526399090,7.31314609,2290.2,2289.8,2.50647767]
[1726526399319,4.36664,2290.1,2289.8,2.50647767]
[1726526399630,4.367,2289.9,2289.8,0.25337767]
[1726526399833,4.39700005,2289.9,2289.8,0.25337767]
[1726526400039,4.39700005,2289.9,2289.8,0.25313644]
[1726526400524,11.21960005,2289.9,2289.8,0.25313644]
[1726526400697,17.30874454,2289.9,2289.8,0.25313644]
[1726526400902,22.81874454,2289.9,2289.8,0.0027981]
[1726526401137,24.4539594,2289.9,2289.8,0.0027981]
[1726526401300,22.81874454,2289.9,2289.8,0.0027981]
[1726526401499,20.0869594,2289.9,2289.8,0.0027981]
[1726526401713,4.36662,2290.1,2289.8,0.0027981]
[1726526401938,8.7338,2290.0,2289.8,2.50623644]
[1726526402143,0.03000005,2289.9,2289.8,2.2558981]
[1726526402294,1.66521491,2289.9,2289.8,0.0027981]
[1726526402497,6.03221491,2289.9,2289.8,0.0027981]
[1726526402743,1.66521491,2289.9,2289.8,0.0027981]
[1726526403040,6.32644,2290.2,2289.8,0.0027981]
[1726526403240,0.03000005,2290.1,2289.8,0.0027981]
[1726526403755,6.03193491,2290.1,2289.8,0.0027981]
[1726526403900,1.63521486,2289.9,2289.8,0.0027981]
[1726526404238,8.73348,2290.1,2289.8,0.0027981]
[1726526404394,0.03000005,2290.0,2289.8,0.0027981]